Cogmind - Beta 13 X3 @@@ ROGUE MODE // 2024.02.14 @ 13:17:28 Player: Minty Result: Destroyed by P-60 Hacker with Shock Rifle Performance ------------- Evolutions (3) 1500 Regions Visited (8) 1600 Robots Destroyed (56) 280 Value Destroyed (2158) 2158 Prototype IDs (28) 560 Alien Tech Used (0) 0 Bonus (1151) 1151 TOTAL SCORE: 7249 Bonus ------- High Alert Combat Kills 349 Follower Combat Kills 574 Entered Garrisons 200 Aligned with FarCom 300 Friendly Fire -272 Cogmind --------- Core Integrity 0/700 Matter 150/300 Energy 43/100 System Corruption 3% Temperature Warm (120) Movement Walking (120) Location -7/Factory Parts ------- > --- POWER (1) -------- (None) > --- PROPULSION (4) --- Improved Carbon-fiber Leg > --- UTILITY (5) ------ Improved Heat Sink Improved Sensor Array Core Analyzer Utility Shielding > --- WEAPON (3) ------- EM Pulse Gun Field Laser Flak Gun > --- INVENTORY (5) ---- Sensor Array Improved Shield Generator Gatling Laser Peak State ------------ > --- POWER ------------ (None) > --- PROPULSION ------- Flight Unit Improved VTOL Module Improved VTOL Module Improved VTOL Module > --- UTILITY ---------- Lightpack 2.0 Improved Light Armor Plating > --- WEAPON ----------- AWS/Thermal > --- INVENTORY -------- Wheel Improved VTOL Module Improved VTOL Module Improved Heat Sink Sensor Array Improved Signal Interpreter Particle Charger Utility Shielding Improved Medium Armor Plating Relay Coupler [NC] Relay Coupler [Swarmer] Relay Coupler [Grunt] Relay Coupler [Grunt] Relay Coupler [Grunt] Long-range Tractor Beam EM Pulse Gun EM Pulse Gun EM Pulse Gun EM Pulse Gun Particle Gun Gatling Laser Gatling Laser EM Pulse Cannon EM Pulse Cannon Heavy Particle Cannon Flak Gun Datajack Improved Datajack Improved Datajack Improved Datajack Mining Laser Deploy-a-Sentry Deploy-a-Sentry [Rating: 71] Favorites ----------- Power Ion Engine Engine Ion Engine Power Core Light Nuclear Core Propulsion Aluminum Leg Leg Aluminum Leg Wheel Wheel Flight Unit Improved VTOL Module Utility Visual Processing Unit Device Cooling System Storage Small Storage Unit Processor Visual Processing Unit Protection Utility Shielding Weapon EM Pulse Gun Energy Gun EM Pulse Gun Energy Cannon Heavy Particle Cannon Ballistic Gun Minigun Special Weapon Mining Laser Special Melee Weapon Datajack Build | -11 -10 -10 -10 -9 -8 -7 -7 -7 ------- Run | Yrd Mat Min Exi Min Mat Fac Gar Fac Slots Evolved 6 | . . . . . 4 2 . . Power . | . . . . . . . . . Propulsion 2 | . . . . . 1 1 . . Utility 3 | . . . . . 2 1 . . Weapon 1 | . . . . . 1 . . . Parts Attached 83 | . 6 2 3 4 30 6 18 14 Power 11 | . 1 . . . 7 . 3 . Engine 2 | . 1 . . . 1 . . . Core 9 | . . . . . 6 . 3 . Reactor . | . . . . . . . . . Propulsion 27 | . . 2 2 . 12 2 7 2 Treads . | . . . . . . . . . Leg 11 | . . 2 . . 7 . . 2 Wheel 3 | . . . 2 . . . 1 . Hover . | . . . . . . . . . Flight 13 | . . . . . 5 2 6 . Utility 15 | . 1 . 1 . 2 . 3 8 Device 5 | . . . . . 1 . . 4 Storage 2 | . . . 1 . 1 . . . Processor 2 | . 1 . . . . . . 1 Hackware . | . . . . . . . . . Protection 6 | . . . . . . . 3 3 Artifact . | . . . . . . . . . Weapon 30 | . 4 . . 4 9 4 5 4 Energy Gun 16 | . 4 . . 2 3 2 2 3 Energy Cannon 6 | . . . . . 3 1 2 . Ballistic Gun 4 | . . . . . 2 1 . 1 Ballistic Cannon . | . . . . . . . . . Launcher . | . . . . . . . . . Special Weapon 3 | . . . . 2 . . 1 . Impact Weapon . | . . . . . . . . . Slashing Weapon . | . . . . . . . . . Piercing Weapon . | . . . . . . . . . Special Melee Weapon 1 | . . . . . 1 . . . Unidentified Prototypes 1 | . . . . . 1 . . . Corrupted Parts 3 | . . . . . 2 . . 1 System Corruption 19 | . . . . . 16 . . 3 Parts Lost 21 | . 1 . . . 3 1 16 . Power 6 | . . . . . 3 . 3 . Propulsion 9 | . . . . . . . 9 . Utility 1 | . . . . . . . 1 . Weapon 5 | . 1 . . . . 1 3 . Highest Loss Streak 5 | . 1 . . . 2 1 5 . To Critical Strikes . | . . . . . . . . . Average Slot Usage (%) 79 | . 94 100 100 100 71 66 37 44 Engine 8 | . 14 14 14 14 3 . . . Core 1 | . . . . . 5 7 3 . Leg 13 | . 28 28 20 . 11 . . 5 Wheel 5 | . . . 7 28 1 . . . Flight 5 | . . . . . 13 30 17 . Device 2 | . . . . . 5 7 . 11 Storage 10 | . 14 14 14 14 9 7 7 . Processor 8 | . 8 14 14 14 3 . . 5 Energy Gun 17 | . 21 28 28 20 11 8 3 10 Ballistic Gun 2 | . 6 . . . 3 3 . 3 Naked Turns 39 | . . . . . . . . 39 Heaviest Build 49 | 12 14 14 49 49 49 20 20 16 Greatest Support 45 | 20 20 20 20 20 45 20 20 18 Greatest Overweight (x) 4 | . . . 2 2 4 . 1 4 Average Overweight (x) . | . . . . 2 . . . . Largest Inventory Capacity 40 | . 8 8 20 20 40 40 40 40 Average Capacity 20 | . 8 8 12 20 39 40 40 5 Most Carried 40 | . 8 8 16 17 33 35 40 35 Average Carried 15 | . 7 8 9 16 23 33 34 3 Final Capacity 40 | 8 8 8 20 20 40 40 40 5 Final Carried 35 | 6 8 8 16 17 33 35 35 3 Class Distribution -------------------- 59% | Mutant 18% | Hauler-Sprinter 7% | Hauler-Mutant 6% | Hauler-Skirmisher 3% | Tank Dominant Class ---------------- Mutant | -10/Materials Mutant | -10/Mines Mutant | -10/Exiles Mutant | -9/Mines Hauler-Sprinter | -8/Materials Hauler-Sprinter | -7/Factory Hauler-Sprinter | -7/Garrison Tank | -7/Factory Resources | -11 -10 -10 -10 -9 -8 -7 -7 -7 ----------- Run | Yrd Mat Min Exi Min Mat Fac Gar Fac Matter Collected 1092 | 200 109 26 . 24 496 . 212 25 Remotely . | . . . . . . . . . Salvage Created 2207 | . 326 53 . 52 741 154 856 25 Parts 111 | . 17 1 . 4 38 12 37 2 Haulers Intercepted 3 | . 1 . . . 1 1 . . Recyclers Shooed . | . . . . . . . . . Parts Field Recycled . | . . . . . . . . . Retrieved Matter . | . . . . . . . . . Parts Self-Destructed . | . . . . . . . . . Prevented . | . . . . . . . . . Kills | -11 -10 -10 -10 -9 -8 -7 -7 -7 ------- Run | Yrd Mat Min Exi Min Mat Fac Gar Fac Combat Hostiles Destroyed 43 | . 5 1 . . 13 6 18 . Guns 33 | . 5 1 . . 11 . 16 . Cannons 1 | . . . . . . . 1 . AOE 7 | . . . . . 1 6 . . Classes Destroyed 11 | . 5 . . 1 4 1 . . Worker 3 | . 1 . . . . 2 . . Builder 1 | . . . . . . 1 . . Tunneler 1 | . . . . 1 . . . . Hauler 3 | . 1 . . . 1 1 . . Operator 1 | . 1 . . . . . . . Watcher 2 | . 1 . . . . . . 1 Swarmer 9 | . . . . . 1 4 4 . Grunt 24 | . 5 1 . 2 6 2 8 . Duelist 1 | . . . . . 1 . . . Sentry 7 | . . . . . 4 . 3 . Hunter 4 | . . . . . 1 . 3 . Best Kill Streak 16 | . 8 1 . 1 2 9 16 1 Combat Bots Only 16 | . 2 1 . . 2 6 16 . Max Kills in Single Turn 5 | . 2 1 . 1 1 5 1 1 Gunslinging 1 | . 1 . . . . . . . Exploded 5 | . . . . . 1 5 . . Melee . | . . . . . . . . . Uniques/NPCs Destroyed . | . . . . . . . . . Combat | -11 -10 -10 -10 -9 -8 -7 -7 -7 -------- Run | Yrd Mat Min Exi Min Mat Fac Gar Fac Hostile Shots Fired 459 | . 28 2 . . 120 7 294 8 Missed 165 | . 4 1 . . 46 5 108 1 Damage Taken 3582 | . 281 18 . . 1073 116 1990 104 Core 1023 | . 32 . . . 287 98 560 46 Absorbed by Shields 235 | . . . . . . . 235 . Core Remaining (%) 78 | 100 . . . 87 47 . . . Volleys Fired 179 | . 29 3 . 41 65 6 28 7 Largest 3 | . 2 2 . 2 3 2 2 3 Hottest 155 | . 80 80 . 100 155 75 110 131 Shots Fired 342 | . 56 6 . 43 112 8 106 11 Gun 264 | . 56 6 . 4 97 6 84 11 Cannon 38 | . . . . . 15 2 21 . Launcher . | . . . . . . . . . Special 40 | . . . . 39 . . 1 . Kinetic 73 | . 20 . . . 40 6 . 7 Thermal 174 | . 20 . . 39 15 2 96 2 Explosive . | . . . . . . . . . Electromagnetic 95 | . 16 6 . 4 57 . 10 2 Robot Hit Streak 26 | . 10 2 . 1 11 3 26 5 Robot Miss Streak 8 | . 3 2 . 1 4 3 2 8 Penetration Max . | . . . . . . . . . Secondary Targets 2 | . 1 . . . 1 . . . Max Gunslinging Chain 1 | . 1 . . . 1 . . . Autonomous 74 | . . . . . . . 74 . Shots Hit Robots 213 | . 34 2 . 3 70 5 91 8 Core Hits 98 | . 14 1 . 3 32 8 32 8 Critical Kills 1 | . . . . . 1 . . . Critical Parts Destroyed . | . . . . . . . . . Critical Strikes 6 | . 4 . . . 2 . . . Burn 3 | . 3 . . . . . . . Meltdown 1 | . . . . . 1 . . . Corrupt 2 | . 1 . . . 1 . . . Melee Attacks 1 | . . . . . 1 . . . Impact . | . . . . . . . . . Slashing . | . . . . . . . . . Piercing . | . . . . . . . . . Sneak Attacks 1 | . . . . . 1 . . . Combat Hostiles . | . . . . . . . . . Follow-up Attacks . | . . . . . . . . . Damage Inflicted 5675 | . 511 30 . 100 1273 1255 2372 134 Guns 3682 | . 469 30 . 28 929 49 2043 134 Cannons 575 | . . . . . 200 50 325 . Explosions 1341 | . 42 . . . 143 1156 . . Melee . | . . . . . . . . . Ramming 5 | . . . . . 1 . 4 . Kinetic 763 | . 159 . . . 463 49 . 92 Thermal 2947 | . 228 . . 72 343 50 2212 42 Explosive 1156 | . . . . . . 1156 . . Electromagnetic 804 | . 124 30 . 28 466 . 156 . Impact . | . . . . . . . . . Slashing . | . . . . . . . . . Piercing . | . . . . . . . . . Highest Corruption 16 | . . . . . 16 . . 3 Average Corruption 12 | . . . . . 15 . . 3 Corruption Purged . | . . . . . . . . . Corruption Blocked . | . . . . . . . . . Effects 26 | . . . . . 24 . . 2 Message Errors 9 | . . . . . 8 . . 1 Matter Fused 3 | . . . . . 3 . . . Heat Flow Errors 1 | . . . . . . . . 1 Energy Discharges 1 | . . . . . 1 . . . Parts Rejected 3 | . . . . . 3 . . . Data Loss (minor) 2 | . . . . . 2 . . . Misfires 2 | . . . . . 2 . . . Alerts 1 | . . . . . 1 . . . Misdirections 1 | . . . . . 1 . . . Weapon Failures 3 | . . . . . 3 . . . Overload Shots . | . . . . . . . . . Overflow Damage 212 | . . . . . . 212 . . Projectiles . | . . . . . . . . . Explosions 212 | . . . . . . 212 . . Melee . | . . . . . . . . . Knockbacks . | . . . . . . . . . Impact . | . . . . . . . . . Kinetic . | . . . . . . . . . Secondary . | . . . . . . . . . Self-Inflicted Damage 2 | . . . . . . . 2 . Shots . | . . . . . . . . . Rammed 2 | . . . . . . . 2 . Targets Rammed 4 | . . . . . 2 . 2 . Kicked 2 | . . . . . 2 . . . Crushed . | . . . . . . . . . Highest Temperature 260 | . 157 45 . 260 252 . 131 168 Average Temperature 76 | . 55 27 . 87 101 . 46 105 Received Heat Transfer 1175 | . 156 9 . . 468 9 533 . Effects 1 | . . . . 1 . . . . Energy Bleed 1 | . . . . 1 . . . . Siege Activations . | . . . . . . . . . Robots Corrupted 1 | . . . . . . . 1 . Combat Hostiles 1 | . . . . . . . 1 . Parts Fried 2 | . . . . . 1 . 1 . Impact Corruptions . | . . . . . . . . . Robots Melted 1 | . . . . . 1 . . . Combat Hostiles 1 | . . . . . 1 . . . Parts Melted 6 | . 1 . . . 2 . 3 . Heat Transferred 4212 | . 827 . . 150 396 74 2691 74 Parts Sabotaged . | . . . . . . . . . Parts Stolen . | . . . . . . . . . Parts Stripped . | . . . . . . . . . Power Chain Reactions 3 | . 1 . . . 2 . . . Alert | -11 -10 -10 -10 -9 -8 -7 -7 -7 ------- Run | Yrd Mat Min Exi Min Mat Fac Gar Fac Peak Influence 953 | . 222 66 . 5 683 625 953 477 Initial 470 | . . 8 . . 1 310 437 470 Average 268 | . 127 32 . 4 246 486 705 471 Maximum Alert Level 3 | . 1 . . . 2 2 3 2 Low Security (%) 50 | . 56 100 . 100 58 . . . Level 1 13 | . 43 . . . 14 35 . . Level 2 29 | . . . . . 26 64 49 100 Level 3 6 | . . . . . . . 50 . Level 4 . | . . . . . . . . . Level 5 . | . . . . . . . . . High Security . | . . . . . . . . . Max Security . | . . . . . . . . . Squads Dispatched 7 | . 2 . . . 4 . . 1 Investigation 5 | . 1 . . . 4 . . . Extermination 1 | . . . . . . . . 1 Reinforcement 1 | . 1 . . . . . . . Assault . | . . . . . . . . . Garrison . | . . . . . . . . . Intercept . | . . . . . . . . . Searches Triggered . | . . . . . . . . . Construction Impeded . | . . . . . . . . . Haulers Reinforced . | . . . . . . . . . Active Scanning Responses . | . . . . . . . . . Cargo Convoy Interrupts . | . . . . . . . . . Stealth | -11 -10 -10 -10 -9 -8 -7 -7 -7 --------- Run | Yrd Mat Min Exi Min Mat Fac Gar Fac Distress Signals 7 | . 1 . . . 6 . . . Communications Jammed . | . . . . . . . . . Distress Signals . | . . . . . . . . . Times Spotted 89 | . 9 2 . . 38 7 31 2 Peak Tracking Total 9 | . 3 2 . . 9 6 9 1 Tactical Retreats 4 | . . . . . 4 . . . Traps | -11 -10 -10 -10 -9 -8 -7 -7 -7 ------- Run | Yrd Mat Min Exi Min Mat Fac Gar Fac Traps Triggered 8 | . . . . . 2 1 5 . Indirectly . | . . . . . . . . . Trap Hack Attempts . | . . . . . . . . . Triggered . | . . . . . . . . . Disarmed 4 | . 4 . . . . . . . Reprogrammed 6 | . 6 . . . . . . . Reused . | . . . . . . . . . Traps Extracted . | . . . . . . . . . Installed . | . . . . . . . . . Triggered . | . . . . . . . . . Objects Rigged 8 | . . . . . . 8 . . Machines | -11 -10 -10 -10 -9 -8 -7 -7 -7 ---------- Run | Yrd Mat Min Exi Min Mat Fac Gar Fac Machines Disabled 7 | . . . . . 1 5 1 . Max in Single Turn 4 | . . . . . . 4 1 . Garrison Relay 2 | . . . . . . . 2 . Machines Repaired . | . . . . . . . . . Machines Dismantled . | . . . . . . . . . Machines Sabotaged . | . . . . . . . . . Overloaded Fab Kills . | . . . . . . . . . Hacking | -11 -10 -10 -10 -9 -8 -7 -7 -7 --------- Run | Yrd Mat Min Exi Min Mat Fac Gar Fac Machines Accessed 9 | . 3 . 1 . 2 3 . . Terminals 4 | . 3 . . . . 1 . . Fabricators 1 | . . . . . . 1 . . Repair Stations . | . . . . . . . . . Recycling Units 1 | . . . . . 1 . . . Scanalyzers 1 | . . . . . 1 . . . Garrison Access 1 | . . . . . . 1 . . Total Hacks 29 | . 11 . 1 . 12 5 . . Successful 19 | . 6 . 1 . 9 3 . . Failed 10 | . 5 . . . 3 2 . . Catastrophic 3 | . 2 . . . . 1 . . Database Lockouts . | . . . . . . . . . Manual 11 | . 5 . 1 . 2 3 . . Terminals 13 | . 11 . . . . 2 . . Fabricators 1 | . . . . . . 1 . . Repair Stations . | . . . . . . . . . Recycling Units 3 | . . . . . 3 . . . Scanalyzers 9 | . . . . . 9 . . . Garrison Access 2 | . . . . . . 2 . . Terminal Hacks 6 | . 5 . 1 . . . . . Prototype ID Bank 1 | . 1 . . . . . . . Locate Traps 1 | . 1 . . . . . . . Disarm Traps 1 | . 1 . . . . . . . Reprogram Traps 1 | . 1 . . . . . . . Surveillance Status 1 | . 1 . . . . . . . Derelict Proto ID Bank 1 | . . . 1 . . . . . Fabricator Hacks . | . . . . . . . . . Repair Station Hacks . | . . . . . . . . . Recycling Unit Hacks 1 | . . . . . 1 . . . Report Inventory 1 | . . . . . 1 . . . Scanalyzer 6 | . . . . . 6 . . . Insert Component 3 | . . . . . 3 . . . Analyze 3 | . . . . . 3 . . . Garrison Access Hacks 1 | . . . . . . 1 . . Unlock Access 1 | . . . . . . 1 . . Unauthorized Hacks 5 | . 1 . . . 2 2 . . Terminals 2 | . 1 . . . . 1 . . Botnet 1 | . 1 . . . . . . . Detonate 1 | . . . . . . 1 . . Fabricators 1 | . . . . . . 1 . . Fabnet 1 | . . . . . . 1 . . Repair Stations . | . . . . . . . . . Recycling Units 1 | . . . . . 1 . . . Tunnel 1 | . . . . . 1 . . . Scanalyzers 1 | . . . . . 1 . . . Extract 1 | . . . . . 1 . . . Garrison Access . | . . . . . . . . . Data Cores Recovered . | . . . . . . . . . Used . | . . . . . . . . . Hacking Detections 8 | . 3 . . . 2 3 . . Full Trace Events 2 | . 2 . . . . . . . Feedback Events . | . . . . . . . . . Feedback Blocked . | . . . . . . . . . Robot Schematics Acquired . | . . . . . . . . . Robots Built . | . . . . . . . . . Authchips . | . . . . . . . . . Time . | . . . . . . . . . Total Robot Build Rating . | . . . . . . . . . Part Schematics Acquired 5 | . . . . . 5 . . . Parts Built . | . . . . . . . . . Authchips . | . . . . . . . . . Time . | . . . . . . . . . Total Part Build Rating . | . . . . . . . . . Parts Repaired . | . . . . . . . . . Time . | . . . . . . . . . Parts Recycled . | . . . . . . . . . Recycled Matter . | . . . . . . . . . Retrieved Matter . | . . . . . . . . . Retrieved Components . | . . . . . . . . . Parts Scanalyzed 2 | . . . . . 2 . . . Part Schematics Acquired 2 | . . . . . 2 . . . Parts Damaged 1 | . . . . . 1 . . . Bothacking | -11 -10 -10 -10 -9 -8 -7 -7 -7 ------------ Run | Yrd Mat Min Exi Min Mat Fac Gar Fac Used RIF Installer . | . . . . . . . . . Robots Hacked 1 | . . . . . 1 . . . Non-combat . | . . . . . . . . . Combat 1 | . . . . . 1 . . . Robot Hacks Applied 1 | . . . . . 1 . . . parse_system 1 | . . . . . 1 . . . Relay Couplers Released 8 | . . . . . . . 8 . Machine Destruction 8 | . . . . . . . 8 . Fabnet Peak Effective % . | . . . . . . . . . Robots Rewired 1 | . . . . . . 1 . . Allies Hacked . | . . . . . . . . . Hacks Repelled . | . . . . . . . . . Allies | -11 -10 -10 -10 -9 -8 -7 -7 -7 -------- Run | Yrd Mat Min Exi Min Mat Fac Gar Fac Total Allies 4 | . . 3 . . . 1 . . Largest Group 3 | . . 3 3 3 1 1 . . Highest-Rated Group 40 | . . 40 40 40 16 16 . . Highest-Rated Ally 16 | . . 16 16 16 16 16 . . Total Orders . | . . . . . . . . . Ally Attacks 64 | . . 9 . . 29 . 26 . Total Damage 2283 | . . 115 . . 1054 . 1114 . Kills 18 | . . 1 . . 9 . 8 . Allies Corrupted . | . . . . . . . . . Allies Melted 1 | . . . . . . . 1 . Turrets Deployed 3 | . . . . . 1 . 2 . Intel | -11 -10 -10 -10 -9 -8 -7 -7 -7 ------- Run | Yrd Mat Min Exi Min Mat Fac Gar Fac Robot Analysis Total . | . . . . . . . . . Derelict Logs Recovered 5 | . . 3 . 2 . . . . Drone Launches . | . . . . . . . . . Drone Recoveries . | . . . . . . . . . Exploration | -11 -10 -10 -10 -9 -8 -7 -7 -7 ------------- Run | Yrd Mat Min Exi Min Mat Fac Gar Fac Turns Passed 3001 | . 433 242 636 358 591 112 312 317 Spaces Moved 2332 | 1 275 180 496 167 551 152 278 232 Core 124 | . . . . . . . 45 79 Treads . | . . . . . . . . . Legs 1087 | 1 275 180 343 . 135 . . 153 Wheels 358 | . . . 153 167 32 . 6 . Hover . | . . . . . . . . . Flight 763 | . . . . . 384 152 227 . Fastest Speed 26 | 120 120 120 110 110 29 26 26 50 Average Speed 87 | 120 120 120 125 110 55 26 41 98 Slowest Speed 315 | 120 120 120 260 110 315 26 107 250 Overloaded Moves . | . . . . . . . . . Propulsion Burnouts . | . . . . . . . . . Robots Hopped 13 | . . . . . 11 1 1 . Cave-ins Triggered . | . . . . . . . . . Exploration Rate (%) 36 | 2 45 52 79 39 53 9 44 2 Regions Visited 8 Branch Regions 3 Pre-discovered Areas 3 | . . 1 . 1 1 . . . Known Exits Taken 2 | . . . . . 1 1 . . Unknown Exits Taken 5 | 1 1 1 1 1 . . . . Scrap Searched 1 | . . 1 . . . . . . Spaces Dug 6 | . . . . 6 . . . . Terrain Destroyed 44 | . 2 . . 10 16 16 . . Melee . | . . . . . . . . . Projectile 17 | . . . . 10 7 . . . AOE 27 | . 2 . . . 9 16 . . Terrain Rammed . | . . . . . . . . . Walls Destroyed . | . . . . . . . . . Machines Disabled . | . . . . . . . . . Actions | -11 -10 -10 -10 -9 -8 -7 -7 -7 --------- Run | Yrd Mat Min Exi Min Mat Fac Gar Fac Total 2947 | . 327 201 508 218 724 215 445 309 Wait 190 | . . 13 4 6 44 29 47 47 Move 2300 | . 274 179 495 166 529 150 275 232 Hop 12 | . . . . . 10 1 1 . Pick Up 60 | . 9 1 5 . 27 4 12 2 Fast Attach 32 | . 1 . . 1 13 2 3 12 Attach 26 | . 1 . . . 6 3 14 2 Detach 27 | . . . . 1 12 2 9 3 Swap 25 | . 4 2 3 3 11 1 1 . Drop 28 | . 9 3 1 . 4 . 7 4 Fire 179 | . 29 3 . 41 65 6 28 7 Melee 1 | . . . . . 1 . . . Ram 2 | . . . . . . . 2 . Kick 2 | . . . . . 2 . . . Crush . | . . . . . . . . . Escape Stasis 46 | . . . . . . . 46 . Rewire 17 | . . . . . . 17 . . Trap . | . . . . . . . . . Miscellaneous . | . . . . . . . . . Route ------- -11/Scrapyard -10/Materials (discovered 2 exits: [*Mat] / [*Min]) -10/Mines -10/Exiles -9/Mines -8/Materials (discovered 2 exits: *Fac x2) -7/Factory (discovered 2 exits: Sto / Gar) -7/Garrison -7/Factory History --------- Turn | Location | Event 1 | -11/Scrapyard | Discovered new exit (range 0) 1 | -11/Scrapyard | Entered Materials 289 | -10/Materials | Discovered new exit (range 18) 301 | -10/Materials | Build established: Mutant 332 | -10/Materials | Discovered new exit (range 17) 434 | -10/Materials | Entered Mines 486 | -10/Mines | Learned location of 1 exit from Materials 541 | -10/Mines | Learned location of Zion (-6) 556 | -10/Mines | Assisted by bots powering up and referring to "LRC-V3" 657 | -10/Mines | Deemed a non-threat by the Exiles lab entrance 658 | -10/Mines | Discovered new exit (range 5) 676 | -10/Mines | Entered Exiles 676 | -10/Exiles | Accompanied by 3 allies 708 | -10/Exiles | Met 8R-AWN 728 | -10/Exiles | Met EX-HEX 759 | -10/Exiles | Met EX-BIN 774 | -10/Exiles | Aligned with FarCom system 775 | -10/Exiles | Given EX-Vault access code 802 | -10/Exiles | Opened EX-Vault 854 | -10/Exiles | Warned to stay clear of 0b10 Research branches 885 | -10/Exiles | Met EX-DEC 927 | -10/Exiles | Visited The Gauntlet 1180 | -10/Exiles | Found Deploy-a-Sentry 1182 | -10/Exiles | Found Deploy-a-Sentry 1184 | -10/Exiles | Found Deploy-a-Sentry 1187 | -10/Exiles | Found AWS/Thermal 1194 | -10/Exiles | Found Lightpack 2.0 1289 | -10/Exiles | Discovered new exit (range 17) 1312 | -10/Exiles | Stole three prototypes: Lightpack 2.0, AWS/Thermal, Deploy-a-Sentry 1312 | -10/Exiles | Entered Mines 1312 | -9/Mines | Accompanied by 3 allies 1319 | -9/Mines | Received a Rocket Launcher from a helpful Derelict 1348 | -9/Mines | Learned location of 1 exit from Materials 1654 | -9/Mines | Discovered new exit (range 12) 1670 | -9/Mines | Entered Materials 1670 | -8/Materials | Accompanied by 1 ally 1670 | -8/Materials | Evolved 4 slots: Propulsion x1, Utility x2, Weapon x1 1671 | -8/Materials | Identified exit to Factory 1828 | -8/Materials | System corruption reached 10% 2036 | -8/Materials | DAS Turret deployed 2250 | -8/Materials | Core integrity fell below 50% 2261 | -8/Materials | Entered Factory 2261 | -7/Factory | Evolved 2 slots: Propulsion x1, Utility x1 2262 | -7/Factory | Identified exit to Storage 2263 | -7/Factory | FarCom data flow suspended 2344 | -7/Factory | Identified exit to Garrison 2373 | -7/Factory | Entered Garrison 2386 | -7/Garrison | Triggered checkpoint 2422 | -7/Garrison | Garrison Relay disabled 2436 | -7/Garrison | Lost 3 parts (1u2w) 2511 | -7/Garrison | Lost 5 parts (2p3n) 2533 | -7/Garrison | Discovered new exit (range 9) 2548 | -7/Garrison | DAS Turret deployed 2549 | -7/Garrison | Core integrity fell below 50% 2558 | -7/Garrison | Triggered checkpoint 2572 | -7/Garrison | Destroyed 16 combat bots 2603 | -7/Garrison | Lost 4 parts (3n1w) 2637 | -7/Garrison | DAS Turret deployed 2654 | -7/Garrison | Core integrity fell below 20% 2661 | -7/Garrison | Lost 4 parts (1p3n) 2661 | -7/Garrison | Garrison Relay disabled 2685 | -7/Garrison | Entered Factory 3002 | -7/Factory | Destroyed by P-60 Hacker with Shock Rifle Last Messages --------------- 02819_ Dropped Hrd. Heavy Armor Plating. 02825_ Acquired EM Pulse Gun. 02830_ Dropped EM Pulse Gun. 02831_ Acquired EM Pulse Gun. 02836_ Acquired Corrupted Flak Gun. 02836_ Integrated Corrupted Flak Gun (+3). 02836_ Complication: Utility Shielding rejected. 02836_ Complication: Imp. Light Armor Plating rejected. 02836_ Complication: Imp. Carbon-fiber Leg rejected. 02843_ Acquired Imp. Carbon-fiber Leg. 02857_ Acquired Utility Shielding. 02871_ Acquired Corrupted Gatling Laser. 02880_ Acquired Sensor Array. 02894_ ALERT: All DSF locations entering lockdown mode. 02895_ OTCTZKILWXHRDVX<9>GGO 02913_ W-25 Informer destroyed. 02923_ Acquired 25 matter. 02935_ ALERT: Rogue bot located, Programmers report to Factory Zone 1F. 02940_ Acquired Imp. Sensor Array. 02992_ System corrupted: Heat flow error (+202). Map ----- +----------------------------------------------------+ | ?????????????????????????????????????????????????? | | ?????????????????????????????????????????????????? | | ?????????????????????????????????????????????????? | | ?????????????????????????????????????????????????? | | ?????????????????????????????????????????????????? | | ?????????????????????????????????????????????????? | | ?????????????????????????????????????????????????? | | ?????????????????????????????????????????????????? | | ????????????????????????????????????##########???? | | ????????????????????????????????????# #???? | | ????????????????????????????????????# #???? | | ????????????????????????????????????# """#???? | | ????????????????????????????????????# """#???? | | ????????????????????????????????????# """#???? | | ????????????????????????????????????# ! ""#???? | | ????????????????????????????????????# ""#???? | | ????????????????????????????????????# #???? | | ?????????????????????????####???????# #???? | | ???????#####+#############T ############+######### | | ??????? | | ?????? | | ?????? | | ?????? | | ?????? ? | | ?????????#################p#############+######### | | ?????????????????????# @ #???# #???? | | ?????????????????????# #???# #???? | | ?????????????????????# #???# #???? | | ?????????????????????# #???# #???? | | ?????????????????????# #???# #???? | | ?????????????????????# #???# #???? | | ?????????????????????# !#???# #???? | | ?????????????????????# #???# #???? | | ?????????????????????###########???###########???? | | ?????????????????????????????????????????????????? | | ?????????????????????????????????????????????????? | | ?????????????????????????????????????????????????? | | ?????????????????????????????????????????????????? | | ?????????????????????????????????????????????????? | | ?????????????????????????????????????????????????? | | ?????????????????????????????????????????????????? | | ?????????????????????????????????????????????????? | | ?????????????????????????????????????????????????? | | ?????????????????????????????????????????????????? | | ?????????????????????????????????????????????????? | | ?????????????????????????????????????????????????? | | ?????????????????????????????????????????????????? | | ?????????????????????????????????????????????????? | | ?????????????????????????????????????????????????? | | ?????????????????????????????????????????????????? | +----------------------------------------------------+ Best States ------------- Heat Dissipation 56 Energy Generation 14 Energy Capacity 250 Matter Stores 300 Matter Capacity 300 Sight Range 18 Robot Scan Range 15 Terrain Scan Density 10 Armor Coverage 150 Utility Shielding 33 Evasion (%) 64 Core Analysis 6 Item Schematics ----------------- Imp. VTOL Module | -8/Materials | Scanalyzed Imp. Signal Interpreter | -8/Materials | Scanalyzed Med. Matter Pod | -8/Materials | Extracted Aluminum Leg | -8/Materials | Extracted Imp. Assault Rifle | -8/Materials | Extracted Robot Schematics ------------------ None Fabricated ------------ Nothing Alien Tech Used ----------------- None Achievements -------------- None Challenges ------------ None Game ------ Seed ThunderHardcellPerforator Manual? 0 Play Time 00:24:22 Cumulative 656.5 hours Start 2024.02.14 @ 12:54:48 End 2024.02.14 @ 13:17:28 Sessions 1 Manual Loads 0 Difficulty Rogue Special Mode None Game No. 656 Rogue 383 Adventurer 123 Explorer 150 Win Type - Total 25 Types 19/0/4/1/0/0/0/1/0 Lore% 80 Gallery% 91 Achievement% 76 Wizard Run 0 Options --------- Layout 0 ASCII 0 Keyboard 1 Movement Numpad Keybinds 0 Fullscreen 2 Font 18/SmallcapsGlow Map View 76x50 Zoom Use 0% Tactical HUD 1 Map Filters NONE Filters NONE Steam 1 RUN: 513177b5-4944-4a98-8484-759910448b55